{"text_format":"3","workbook":"xlsx","n_sheets":5,"sheets":["Índice","1er Trimestre 2025","2do Trimestre 2025","3er Trimestre 2025","4to Trimestre 2025"],"not_rendered":{"images":4,"defined_names":1},"read":"whole","date_system":"1900"}

{"sheet":"Índice","index":0,"n_rows":1,"n_cols":1,"rows_kept":1,"merged":[[6,0,6,7]]}
[{"$error":"#VALUE!"}]

{"sheet":"1er Trimestre 2025","index":1,"n_rows":115,"n_cols":4,"rows_kept":115,"merged":[[5,0,5,2],[6,0,6,1],[7,0,7,1],[12,0,12,1],[13,0,13,1],[17,0,17,1],[18,0,18,1],[28,0,28,1],[29,0,29,1],[30,0,30,1],[35,0,35,1],[36,0,36,1],[37,0,37,1],[38,0,38,1],[43,0,43,1],[48,0,48,1],[55,0,55,1],[63,0,63,1],[69,0,69,1],[70,0,70,1],[77,0,77,1],[84,0,84,1],[88,0,88,1],[91,0,91,1],[99,0,99,1],[100,0,100,1],[109,0,109,1],[114,0,114,1]]}
[]
[]
[]
[]
[]
["Trimestre que informa",null,null,"1° 2025"]
["Temáticas de las solicitudes  de información pública",null,"Número de solicitudes información del periodo informado","% del total ingresado"]
["1. Actividades de la institución ",null,{"$f":"SUM(C9:C12)","v":12},{"$f":"IF(C8=0,\"\",(C8/$C$115*100))","v":{"v":57.14285714285714,"d":"57.14"}}]
[null,"a. Programa de trabajo",null,{"$f":"IF(C9=0,\"\",(C9/$C$115*100))","v":""}]
[null,"b. Resultados de actividades sustantivas",6]
[null,"c. Agenda de servidores públicos",null,""]
[null,"d. Otros",6,{"v":28.57142857142857,"d":"28.57"}]
["2. Archivos",null,0,{"v":0,"d":"0.00"}]
["3. Auditorías",null,0,""]
[null,"a. Resultados"]
[null,"b. Avance de recomendaciones",null,""]
[null,"c. Otros",null,""]
["4. Campañas electorales",null,0,{"v":0,"d":"0.00"}]
["5. Compras públicas y contratos",null,{"$f":"SUM(C20:C28)","v":2},{"v":9.523809523809524,"d":"9.52"}]
[null,"a. Obras públicas",null,""]
[null,"b. Bienes adquiridos",null,""]
[null,"c. Servicios contratados",2]
[null,"d. Bienes arrendados",null,""]
[null,"e. Licitaciones",null,""]
[null,"f. Adjudicaciones directas",null,""]
[null,"g. Invitación a proveedores",null,""]
[null,"h. Publicidad oficial",null,""]
[null,"i. Otros"]
["6. Comunidades Indígenas",null,0,{"v":0,"d":"0.00"}]
["7. Comunidades LGTBI",null,0,{"v":0,"d":"0.00"}]
["8. Datos personales",null,0,{"v":0,"d":"0.00"}]
[null,"a. Datos personales",null,""]
[null,"b. Expediente clínico o médico",null,""]
[null,"c. Expediente laboral",null,""]
[null,"d. Otros",null,""]
["9. Desastres y protección civil",null,0,{"v":0,"d":"0.00"}]
["10. Discriminación",null,0,{"v":0,"d":"0.00"}]
["11. Educación",null,0,{"v":0,"d":"0.00"}]
["12. Estructura Orgánica",null,{"$f":"SUM(C40:C43)","v":1},{"v":4.761904761904762,"d":"4.76"}]
[null,"a. Organigrama"]
[null,"b. Directorio",null,""]
[null,"c. Vacantes"]
[null,"d. Otros",1,{"v":4.761904761904762,"d":"4.76"}]
["13. Gastos",null,{"$f":"SUM(C45:C48)","v":2},{"v":0,"d":"0.00"}]
[null,"a. Gastos operativos",null,""]
[null,"b. Gastos administrativos",null,""]
[null,"c. Gastos de representación",null,""]
[null,"d. Otros",2,{"v":9.523809523809524,"d":"9.52"}]
["14. Igualdad de género",null,{"$f":"SUM(C50:C55)","v":0},{"v":0,"d":"0.00"}]
[null,"a. Programas de apoyo a mujeres",null,""]
[null,"b. Salud de la mujer",null,""]
[null,"c. Violencia de género",null,""]
[null,"d. Discriminación laboral",null,""]
[null,"e. Mujeres empresarias",null,""]
[null,"f. Otros",null,""]
["15. Información generada o administrada por el sujeto obligado",null,{"$f":"SUM(C57:C63)","v":0},""]
[null,"a. Trámites",null,""]
[null,"b. Concesiones",null,""]
[null,"c. Estadísticas"]
[null,"d. Resultados de encuestas",null,""]
[null,"e. Marco jurídico",null,""]
[null,"f. Presupuesto o avance financiero",null,""]
[null,"g. Otros"]
["16. Información sobre servidores públicos",null,{"$f":"SUM(C65:C69)","v":3},{"v":14.285714285714285,"d":"14.29"}]
[null,"a. Sueldos",null,""]
[null,"b. Prestaciones de servidores públicos",null,""]
[null,"c. Información curricular",null,""]
[null,"d. Declaraciones patrimoniales",null,""]
[null,"e. Otros",3]
["17. Medio ambiente",null,0,{"v":0,"d":"0.00"}]
["18. Programas de subsidios",null,{"$f":"SUM(C72:C77)","v":0},{"v":0,"d":"0.00"}]
[null,"a. Diseño y planeación",null,""]
[null,"b. Presupuesto o avance financiero",null,{"$f":"IF(C73=0,\"\",(C73/$C$115*100))","v":""}]
[null,"c. Criterios de acceso y esquema de operación",null,""]
[null,"d. Padrón de beneficiarios",null,""]
[null,"e. Resultados, indicadores de impacto, informes, evaluaciones",null,""]
[null,"f. Otros",null,""]
["19. Programas sociales",null,{"$f":"SUM(C79:C84)","v":0},{"v":0,"d":"0.00"}]
[null,"a. Diseño y planeación",null,""]
[null,"b. Presupuesto o avance financiero",null,""]
[null,"c. Criterios de acceso y esquema de operación",null,""]
[null,"d. Padrón de beneficiarios",null,""]
[null,"e. Resultados, indicadores de impacto, informes, evaluaciones",null,""]
[null,"f. Otros",null,""]
["20. Salud",null,{"$f":"SUM(C86:C88)","v":0},{"v":0,"d":"0.00"}]
[null,"a. Pandemia",null,""]
[null,"b. Disponibilidad y abasto de medicamentos",null,""]
[null,"c. Otros",null,""]
["21. Sanciones",null,{"$f":"SUM(C90:C91)","v":1},{"v":0,"d":"0.00"}]
[null,"a. Servidores públicos",1,{"v":4.761904761904762,"d":"4.76"}]
[null,"b. Particulares",null,""]
["22. Seguridad Nacional",null,{"$f":"SUM(C93:C99)","v":0},{"v":0,"d":"0.00"}]
[null,"a. Estrateias de seguridad nacional",null,""]
[null,"b. instalaciones estratégicas",null,""]
[null,"c. Operación de instituciones",null,""]
[null,"d. Adquisiciones",null,""]
[null,"e. Documentos oficiales",null,""]
[null,"f. Normas",null,""]
[null,"g. Otros",null,""]
["23. Sentencias y resoluciones",null,0,{"v":0,"d":"0.00"}]
["24. Violaciones a Derechos Humanos",null,{"$f":"SUM(C102:C109)","v":0},{"v":0,"d":"0.00"}]
[null,"a. Desaparición forzada",null,""]
[null,"b. Tortura",null,""]
[null,"c. Libertad de expresión",null,""]
[null,"d. Masacres",null,""]
[null,"e. Casos espécificos de violaciones a derechos humanos",null,""]
[null,"f. Violencia política",null,""]
[null,"g. Acceso a la justicia",null,""]
[null,"h. Otros.",null,""]
["25. Otros más frecuentes (especificar)",null,{"$f":"SUM(C111:C114)","v":0},{"v":0,"d":"0.00"}]
[null,"a) Pregunta más frecuente",null,""]
[null,"b) Segunda pregunta más frecuente",null,""]
[null,"c) Tercera pregunta más frecuente",null,""]
[null,"d) Cuarta pregunta más frecuente",null,""]
["Total (SIN OTROS MÁS FRECUENTES)",null,{"$f":"SUM(C8,C13,C14,C18,C19,C29,C30,C31,C36,C37,C38,C39,C44,C49,C56,C64,C70,C71,C78,C85,C89,C92,C100,C101)","v":21},{"v":100,"d":"100.00"}]

{"sheet":"2do Trimestre 2025","index":2,"n_rows":115,"n_cols":4,"rows_kept":115,"merged":[[5,0,5,2],[6,0,6,1],[7,0,7,1],[12,0,12,1],[13,0,13,1],[17,0,17,1],[18,0,18,1],[28,0,28,1],[29,0,29,1],[30,0,30,1],[35,0,35,1],[36,0,36,1],[37,0,37,1],[38,0,38,1],[43,0,43,1],[48,0,48,1],[55,0,55,1],[63,0,63,1],[69,0,69,1],[70,0,70,1],[77,0,77,1],[84,0,84,1],[88,0,88,1],[91,0,91,1],[99,0,99,1],[100,0,100,1],[109,0,109,1],[114,0,114,1]]}
[]
[]
[]
[]
[]
["Trimestre que informa",null,null,"2° 2025"]
["Temáticas de las solicitudes  de información pública",null,"Número de solicitudes información del periodo informado","% del total ingresado"]
["1. Actividades de la institución ",null,{"$f":"SUM(C9:C12)","v":4},{"$f":"IF(C8=0,\"\",(C8/$C$115*100))","v":{"v":40,"d":"40.00"}}]
[null,"a. Programa de trabajo",null,{"$f":"IF(C9=0,\"\",(C9/$C$115*100))","v":""}]
[null,"b. Resultados de actividades sustantivas",3]
[null,"c. Agenda de servidores públicos",null,""]
[null,"d. Otros",1,{"v":10,"d":"10.00"}]
["2. Archivos",null,0,""]
["3. Auditorías",null,{"$f":"SUM(C15:C17)","v":0},""]
[null,"a. Resultados"]
[null,"b. Avance de recomendaciones",null,""]
[null,"c. Otros",null,""]
["4. Campañas electorales",null,0,""]
["5. Compras públicas y contratos",null,{"$f":"SUM(C20:C28)","v":0},""]
[null,"a. Obras públicas",null,""]
[null,"b. Bienes adquiridos",null,""]
[null,"c. Servicios contratados"]
[null,"d. Bienes arrendados",null,""]
[null,"e. Licitaciones",null,""]
[null,"f. Adjudicaciones directas",null,""]
[null,"g. Invitación a proveedores",null,""]
[null,"h. Publicidad oficial",null,""]
[null,"i. Otros"]
["6. Comunidades Indígenas",null,0,""]
["7. Comunidades LGTBI",null,0,""]
["8. Datos personales",null,0,""]
[null,"a. Datos personales",null,""]
[null,"b. Expediente clínico o médico",null,""]
[null,"c. Expediente laboral",null,""]
[null,"d. Otros",null,""]
["9. Desastres y protección civil",null,0,""]
["10. Discriminación",null,0,""]
["11. Educación",null,0,""]
["12. Estructura Orgánica",null,{"$f":"SUM(C40:C43)","v":0},""]
[null,"a. Organigrama"]
[null,"b. Directorio",null,""]
[null,"c. Vacantes"]
[null,"d. Otros",null,""]
["13. Gastos",null,{"$f":"SUM(C45:C48)","v":0},""]
[null,"a. Gastos operativos",null,""]
[null,"b. Gastos administrativos",null,""]
[null,"c. Gastos de representación",null,""]
[null,"d. Otros",null,""]
["14. Igualdad de género",null,{"$f":"SUM(C50:C55)","v":0},""]
[null,"a. Programas de apoyo a mujeres",null,""]
[null,"b. Salud de la mujer",null,""]
[null,"c. Violencia de género",null,""]
[null,"d. Discriminación laboral",null,""]
[null,"e. Mujeres empresarias",null,""]
[null,"f. Otros",null,""]
["15. Información generada o administrada por el sujeto obligado",null,{"$f":"SUM(C57:C63)","v":1},{"v":10,"d":"10.00"}]
[null,"a. Trámites",null,""]
[null,"b. Concesiones",null,""]
[null,"c. Estadísticas"]
[null,"d. Resultados de encuestas",null,""]
[null,"e. Marco jurídico",null,""]
[null,"f. Presupuesto o avance financiero",1,{"v":10,"d":"10.00"}]
[null,"g. Otros"]
["16. Información sobre servidores públicos",null,{"$f":"SUM(C65:C69)","v":2},{"v":20,"d":"20.00"}]
[null,"a. Sueldos",null,""]
[null,"b. Prestaciones de servidores públicos",null,""]
[null,"c. Información curricular",null,""]
[null,"d. Declaraciones patrimoniales",null,""]
[null,"e. Otros",2]
["17. Medio ambiente",null,0,""]
["18. Programas de subsidios",null,{"$f":"SUM(C72:C77)","v":1},{"v":10,"d":"10.00"}]
[null,"a. Diseño y planeación",null,""]
[null,"b. Presupuesto o avance financiero",null,{"$f":"IF(C73=0,\"\",(C73/$C$115*100))","v":""}]
[null,"c. Criterios de acceso y esquema de operación",null,""]
[null,"d. Padrón de beneficiarios",null,""]
[null,"e. Resultados, indicadores de impacto, informes, evaluaciones",null,""]
[null,"f. Otros",1,{"v":10,"d":"10.00"}]
["19. Programas sociales",null,{"$f":"SUM(C79:C84)","v":0},""]
[null,"a. Diseño y planeación",null,""]
[null,"b. Presupuesto o avance financiero",null,""]
[null,"c. Criterios de acceso y esquema de operación",null,""]
[null,"d. Padrón de beneficiarios",null,""]
[null,"e. Resultados, indicadores de impacto, informes, evaluaciones",null,""]
[null,"f. Otros",null,""]
["20. Salud",null,{"$f":"SUM(C86:C88)","v":0},""]
[null,"a. Pandemia",null,""]
[null,"b. Disponibilidad y abasto de medicamentos",null,""]
[null,"c. Otros",null,""]
["21. Sanciones",null,{"$f":"SUM(C90:C91)","v":0},""]
[null,"a. Servidores públicos",null,""]
[null,"b. Particulares",null,""]
["22. Seguridad Nacional",null,{"$f":"SUM(C93:C99)","v":0},""]
[null,"a. Estrateias de seguridad nacional",null,""]
[null,"b. instalaciones estratégicas",null,""]
[null,"c. Operación de instituciones",null,""]
[null,"d. Adquisiciones",null,""]
[null,"e. Documentos oficiales",null,""]
[null,"f. Normas",null,""]
[null,"g. Otros",null,""]
["23. Sentencias y resoluciones",null,2,{"v":20,"d":"20.00"}]
["24. Violaciones a Derechos Humanos",null,{"$f":"SUM(C102:C109)","v":0},""]
[null,"a. Desaparición forzada",null,""]
[null,"b. Tortura",null,""]
[null,"c. Libertad de expresión",null,""]
[null,"d. Masacres",null,""]
[null,"e. Casos espécificos de violaciones a derechos humanos",null,""]
[null,"f. Violencia política",null,""]
[null,"g. Acceso a la justicia",null,""]
[null,"h. Otros.",null,""]
["25. Otros más frecuentes (especificar)",null,{"$f":"SUM(C111:C114)","v":0},""]
[null,"a) Pregunta más frecuente","Información sobre servidores públicos"]
[null,"b) Segunda pregunta más frecuente"," Actividades de la institución ",{"$error":"#VALUE!"}]
[null,"c) Tercera pregunta más frecuente",null,""]
[null,"d) Cuarta pregunta más frecuente",null,""]
["Total (SIN OTROS MÁS FRECUENTES)",null,{"$f":"SUM(C8,C13,C14,C18,C19,C29,C30,C31,C36,C37,C38,C39,C44,C49,C56,C64,C70,C71,C78,C85,C89,C92,C100,C101)","v":10},{"v":100,"d":"100.00"}]

{"sheet":"3er Trimestre 2025","index":3,"n_rows":115,"n_cols":4,"rows_kept":115,"merged":[[5,0,5,2],[6,0,6,1],[7,0,7,1],[12,0,12,1],[13,0,13,1],[17,0,17,1],[18,0,18,1],[28,0,28,1],[29,0,29,1],[30,0,30,1],[35,0,35,1],[36,0,36,1],[37,0,37,1],[38,0,38,1],[43,0,43,1],[48,0,48,1],[55,0,55,1],[63,0,63,1],[69,0,69,1],[70,0,70,1],[77,0,77,1],[84,0,84,1],[88,0,88,1],[91,0,91,1],[99,0,99,1],[100,0,100,1],[109,0,109,1],[114,0,114,1]]}
[]
[]
[]
[]
[]
["Trimestre que informa",null,null,"3° 2025"]
["Temáticas de las solicitudes  de información pública",null,"Número de solicitudes información del periodo informado","% del total ingresado"]
["1. Actividades de la institución ",null,1,{"$f":"IF(C8=0,\"\",(C8/$C$115*100))","v":{"v":3.225806451612903,"d":"3.23"}}]
[null,"a. Programa de trabajo",null,{"$f":"IF(C9=0,\"\",(C9/$C$115*100))","v":""}]
[null,"b. Resultados de actividades sustantivas",1]
[null,"c. Agenda de servidores públicos",null,""]
[null,"d. Otros",null,""]
["2. Archivos",null,null,""]
["3. Auditorías",null,{"$f":"SUM(C15:C17)","v":0},""]
[null,"a. Resultados"]
[null,"b. Avance de recomendaciones",null,""]
[null,"c. Otros",null,""]
["4. Campañas electorales",null,0,""]
["5. Compras públicas y contratos",null,{"$f":"SUM(C20:C28)","v":3},{"v":9.67741935483871,"d":"9.68"}]
[null,"a. Obras públicas",null,""]
[null,"b. Bienes adquiridos",null,""]
[null,"c. Servicios contratados",2]
[null,"d. Bienes arrendados",null,""]
[null,"e. Licitaciones",null,""]
[null,"f. Adjudicaciones directas",null,""]
[null,"g. Invitación a proveedores",null,""]
[null,"h. Publicidad oficial",1,{"v":3.225806451612903,"d":"3.23"}]
[null,"i. Otros"]
["6. Comunidades Indígenas",null,0,""]
["7. Comunidades LGTBI",null,0,""]
["8. Datos personales",null,null,""]
[null,"a. Datos personales",null,""]
[null,"b. Expediente clínico o médico",null,""]
[null,"c. Expediente laboral",null,""]
[null,"d. Otros",null,""]
["9. Desastres y protección civil",null,0,""]
["10. Discriminación",null,0,""]
["11. Educación",null,0,""]
["12. Estructura Orgánica",null,{"$f":"SUM(C40:C43)","v":0},""]
[null,"a. Organigrama"]
[null,"b. Directorio",null,""]
[null,"c. Vacantes"]
[null,"d. Otros",null,""]
["13. Gastos",null,{"$f":"SUM(C45:C48)","v":0},""]
[null,"a. Gastos operativos",null,""]
[null,"b. Gastos administrativos",null,""]
[null,"c. Gastos de representación",null,""]
[null,"d. Otros",null,""]
["14. Igualdad de género",null,{"$f":"SUM(C50:C55)","v":0},""]
[null,"a. Programas de apoyo a mujeres",null,""]
[null,"b. Salud de la mujer",null,""]
[null,"c. Violencia de género",null,""]
[null,"d. Discriminación laboral",null,""]
[null,"e. Mujeres empresarias",null,""]
[null,"f. Otros",null,""]
["15. Información generada o administrada por el sujeto obligado",null,{"$f":"SUM(C57:C63)","v":10},{"v":32.25806451612903,"d":"32.26"}]
[null,"a. Trámites",null,""]
[null,"b. Concesiones",null,""]
[null,"c. Estadísticas"]
[null,"d. Resultados de encuestas",null,""]
[null,"e. Marco jurídico",null,""]
[null,"f. Presupuesto o avance financiero",4,{"v":12.903225806451612,"d":"12.90"}]
[null,"g. Otros",6]
["16. Información sobre servidores públicos",null,{"$f":"SUM(C65:C69)","v":17},{"v":54.83870967741935,"d":"54.84"}]
[null,"a. Sueldos",null,""]
[null,"b. Prestaciones de servidores públicos",null,""]
[null,"c. Información curricular",null,""]
[null,"d. Declaraciones patrimoniales",null,""]
[null,"e. Otros",17]
["17. Medio ambiente",null,0,""]
["18. Programas de subsidios",null,{"$f":"SUM(C72:C77)","v":0},""]
[null,"a. Diseño y planeación",null,""]
[null,"b. Presupuesto o avance financiero",null,{"$f":"IF(C73=0,\"\",(C73/$C$115*100))","v":""}]
[null,"c. Criterios de acceso y esquema de operación",null,""]
[null,"d. Padrón de beneficiarios",null,""]
[null,"e. Resultados, indicadores de impacto, informes, evaluaciones",null,""]
[null,"f. Otros",null,""]
["19. Programas sociales",null,{"$f":"SUM(C79:C84)","v":0},""]
[null,"a. Diseño y planeación",null,""]
[null,"b. Presupuesto o avance financiero",null,""]
[null,"c. Criterios de acceso y esquema de operación",null,""]
[null,"d. Padrón de beneficiarios",null,""]
[null,"e. Resultados, indicadores de impacto, informes, evaluaciones",null,""]
[null,"f. Otros",null,""]
["20. Salud",null,{"$f":"SUM(C86:C88)","v":0},""]
[null,"a. Pandemia",null,""]
[null,"b. Disponibilidad y abasto de medicamentos",null,""]
[null,"c. Otros",null,""]
["21. Sanciones",null,{"$f":"SUM(C90:C91)","v":0},""]
[null,"a. Servidores públicos",null,""]
[null,"b. Particulares",null,""]
["22. Seguridad Nacional",null,{"$f":"SUM(C93:C99)","v":0},""]
[null,"a. Estrateias de seguridad nacional",null,""]
[null,"b. instalaciones estratégicas",null,""]
[null,"c. Operación de instituciones",null,""]
[null,"d. Adquisiciones",null,""]
[null,"e. Documentos oficiales",null,""]
[null,"f. Normas",null,""]
[null,"g. Otros",null,""]
["23. Sentencias y resoluciones",null,0,""]
["24. Violaciones a Derechos Humanos",null,{"$f":"SUM(C102:C109)","v":0},""]
[null,"a. Desaparición forzada",null,""]
[null,"b. Tortura",null,""]
[null,"c. Libertad de expresión",null,""]
[null,"d. Masacres",null,""]
[null,"e. Casos espécificos de violaciones a derechos humanos",null,""]
[null,"f. Violencia política",null,""]
[null,"g. Acceso a la justicia",null,""]
[null,"h. Otros.",null,""]
["25. Otros más frecuentes (especificar)",null,{"$f":"SUM(C111:C114)","v":0},""]
[null,"a) Pregunta más frecuente",null,""]
[null,"b) Segunda pregunta más frecuente",null,""]
[null,"c) Tercera pregunta más frecuente",null,""]
[null,"d) Cuarta pregunta más frecuente",null,""]
["Total (SIN OTROS MÁS FRECUENTES)",null,{"$f":"SUM(C8,C13,C14,C18,C19,C29,C30,C31,C36,C37,C38,C39,C44,C49,C56,C64,C70,C71,C78,C85,C89,C92,C100,C101)","v":31},{"v":100,"d":"100.00"}]

{"sheet":"4to Trimestre 2025","index":4,"n_rows":115,"n_cols":4,"rows_kept":115,"merged":[[5,0,5,2],[6,0,6,1],[7,0,7,1],[12,0,12,1],[13,0,13,1],[17,0,17,1],[18,0,18,1],[28,0,28,1],[29,0,29,1],[30,0,30,1],[35,0,35,1],[36,0,36,1],[37,0,37,1],[38,0,38,1],[43,0,43,1],[48,0,48,1],[55,0,55,1],[63,0,63,1],[69,0,69,1],[70,0,70,1],[77,0,77,1],[84,0,84,1],[88,0,88,1],[91,0,91,1],[99,0,99,1],[100,0,100,1],[109,0,109,1],[114,0,114,1]]}
[]
[]
[]
[]
[]
["Trimestre que informa",null,null,"4° 2025"]
["Temáticas de las solicitudes  de información pública",null,"Número de solicitudes información del periodo informado","% del total ingresado"]
["1. Actividades de la institución ",null,{"$f":"SUM(C9:C12)","v":16},{"$f":"IF(C8=0,\"\",(C8/$C$115*100))","v":{"v":72.72727272727273,"d":"72.73"}}]
[null,"a. Programa de trabajo",null,{"$f":"IF(C9=0,\"\",(C9/$C$115*100))","v":""}]
[null,"b. Resultados de actividades sustantivas",10]
[null,"c. Agenda de servidores públicos",null,""]
[null,"d. Otros",6,{"v":27.27272727272727,"d":"27.27"}]
["2. Archivos",null,0,""]
["3. Auditorías",null,{"$f":"SUM(C15:C17)","v":0},""]
[null,"a. Resultados"]
[null,"b. Avance de recomendaciones",null,""]
[null,"c. Otros",null,""]
["4. Campañas electorales",null,0,""]
["5. Compras públicas y contratos",null,{"$f":"SUM(C20:C28)","v":1},{"v":4.545454545454546,"d":"4.55"}]
[null,"a. Obras públicas",null,""]
[null,"b. Bienes adquiridos",null,""]
[null,"c. Servicios contratados"]
[null,"d. Bienes arrendados",null,""]
[null,"e. Licitaciones",null,""]
[null,"f. Adjudicaciones directas",null,""]
[null,"g. Invitación a proveedores",null,""]
[null,"h. Publicidad oficial",null,""]
[null,"i. Otros",1]
["6. Comunidades Indígenas",null,0,""]
["7. Comunidades LGTBI",null,0,""]
["8. Datos personales",null,1,{"v":4.545454545454546,"d":"4.55"}]
[null,"a. Datos personales",1,{"v":4.545454545454546,"d":"4.55"}]
[null,"b. Expediente clínico o médico",null,""]
[null,"c. Expediente laboral",null,""]
[null,"d. Otros",null,""]
["9. Desastres y protección civil",null,0,""]
["10. Discriminación",null,0,""]
["11. Educación",null,0,""]
["12. Estructura Orgánica",null,{"$f":"SUM(C40:C43)","v":0},""]
[null,"a. Organigrama"]
[null,"b. Directorio",null,""]
[null,"c. Vacantes"]
[null,"d. Otros",null,""]
["13. Gastos",null,{"$f":"SUM(C45:C48)","v":0},""]
[null,"a. Gastos operativos",null,""]
[null,"b. Gastos administrativos",null,""]
[null,"c. Gastos de representación",null,""]
[null,"d. Otros",null,""]
["14. Igualdad de género",null,{"$f":"SUM(C50:C55)","v":0},""]
[null,"a. Programas de apoyo a mujeres",null,""]
[null,"b. Salud de la mujer",null,""]
[null,"c. Violencia de género",null,""]
[null,"d. Discriminación laboral",null,""]
[null,"e. Mujeres empresarias",null,""]
[null,"f. Otros",null,""]
["15. Información generada o administrada por el sujeto obligado",null,{"$f":"SUM(C57:C63)","v":4},{"v":18.181818181818183,"d":"18.18"}]
[null,"a. Trámites",null,""]
[null,"b. Concesiones",null,""]
[null,"c. Estadísticas"]
[null,"d. Resultados de encuestas",null,""]
[null,"e. Marco jurídico",null,""]
[null,"f. Presupuesto o avance financiero",null,""]
[null,"g. Otros",4]
["16. Información sobre servidores públicos",null,{"$f":"SUM(C65:C69)","v":0},""]
[null,"a. Sueldos",null,""]
[null,"b. Prestaciones de servidores públicos",null,""]
[null,"c. Información curricular",null,""]
[null,"d. Declaraciones patrimoniales",null,""]
[null,"e. Otros"]
["17. Medio ambiente",null,0,""]
["18. Programas de subsidios",null,{"$f":"SUM(C72:C77)","v":0},""]
[null,"a. Diseño y planeación",null,""]
[null,"b. Presupuesto o avance financiero",null,{"$f":"IF(C73=0,\"\",(C73/$C$115*100))","v":""}]
[null,"c. Criterios de acceso y esquema de operación",null,""]
[null,"d. Padrón de beneficiarios",null,""]
[null,"e. Resultados, indicadores de impacto, informes, evaluaciones",null,""]
[null,"f. Otros",null,""]
["19. Programas sociales",null,{"$f":"SUM(C79:C84)","v":0},""]
[null,"a. Diseño y planeación",null,""]
[null,"b. Presupuesto o avance financiero",null,""]
[null,"c. Criterios de acceso y esquema de operación",null,""]
[null,"d. Padrón de beneficiarios",null,""]
[null,"e. Resultados, indicadores de impacto, informes, evaluaciones",null,""]
[null,"f. Otros",null,""]
["20. Salud",null,{"$f":"SUM(C86:C88)","v":0},""]
[null,"a. Pandemia",null,""]
[null,"b. Disponibilidad y abasto de medicamentos",null,""]
[null,"c. Otros",null,""]
["21. Sanciones",null,{"$f":"SUM(C90:C91)","v":0},""]
[null,"a. Servidores públicos",null,""]
[null,"b. Particulares",null,""]
["22. Seguridad Nacional",null,{"$f":"SUM(C93:C99)","v":0},""]
[null,"a. Estrateias de seguridad nacional",null,""]
[null,"b. instalaciones estratégicas",null,""]
[null,"c. Operación de instituciones",null,""]
[null,"d. Adquisiciones",null,""]
[null,"e. Documentos oficiales",null,""]
[null,"f. Normas",null,""]
[null,"g. Otros",null,""]
["23. Sentencias y resoluciones",null,0,""]
["24. Violaciones a Derechos Humanos",null,{"$f":"SUM(C102:C109)","v":0},""]
[null,"a. Desaparición forzada",null,""]
[null,"b. Tortura",null,""]
[null,"c. Libertad de expresión",null,""]
[null,"d. Masacres",null,""]
[null,"e. Casos espécificos de violaciones a derechos humanos",null,""]
[null,"f. Violencia política",null,""]
[null,"g. Acceso a la justicia",null,""]
[null,"h. Otros.",null,""]
["25. Otros más frecuentes (especificar)",null,{"$f":"C112","v":"Información generada o administrada por el sujeto obligado"},{"$error":"#VALUE!"}]
[null,"a) Pregunta más frecuente","Actividades de la institución"]
[null,"b) Segunda pregunta más frecuente","Información generada o administrada por el sujeto obligado",{"$error":"#VALUE!"}]
[null,"c) Tercera pregunta más frecuente","Compras públicas"]
[null,"d) Cuarta pregunta más frecuente",null,""]
["Total (SIN OTROS MÁS FRECUENTES)",null,{"$f":"SUM(C8,C13,C14,C18,C19,C29,C30,C31,C36,C37,C38,C39,C44,C49,C56,C64,C70,C71,C78,C85,C89,C92,C100,C101)","v":22},{"v":100,"d":"100.00"}]